fUSD/lending_fUSD_20260622
["ID","MTS","AMOUNT","RATE_DAILY","PERIOD"]
[425999758,1782090632000,-310.0,0.00014582,2]
[425999765,1782090632000,-150.0,0.00014582,2]
[425999767,1782090632000,-151.0,0.00014583,2]
[425999766,1782090632000,-151.0,0.00014582,2]
[425999768,1782090632000,-153.0,0.00014583,2]
[425999753,1782090632000,-151.0,0.00014582,2]
[425999802,1782090633000,-319.0,0.00014587,2]
[425999800,1782090633000,-311.0,0.00014587,2]
[425999810,1782090633000,-318.0,0.00014587,2]
[425999799,1782090633000,-320.0,0.00014587,2]
[425999803,1782090633000,-319.0,0.00014587,2]
[425999806,1782090633000,-314.0,0.00014587,2]
[425999805,1782090633000,-151.0,0.00014587,2]
[425999804,1782090633000,-309.0,0.00014587,2]
[425999808,1782090633000,-150.0,0.00014587,2]
[425999795,1782090633000,-150.0,0.00014585,2]
[425999801,1782090633000,-152.0,0.00014587,2]
[425999794,1782090633000,-151.0,0.00014585,2]
[425999809,1782090633000,-317.0,0.00014587,2]
[425999798,1782090633000,-151.0,0.00014587,2]
[425999796,1782090633000,-318.0,0.00014587,2]
[425999792,1782090633000,-151.0,0.00014585,2]
[425999793,1782090633000,-152.0,0.00014585,2]
[425999790,1782090633000,-151.0,0.00014585,2]
[425999789,1782090633000,-330.0,0.00014585,2]
[425999791,1782090633000,-153.0,0.00014585,2]
[425999786,1782090633000,-150.0,0.00014585,2]
[425999784,1782090633000,-312.0,0.00014585,2]
[425999785,1782090633000,-310.0,0.00014585,2]
[425999783,1782090633000,-152.0,0.00014585,2]
[425999787,1782090633000,-311.0,0.00014585,2]
[425999797,1782090633000,-314.0,0.00014587,2]
[425999807,1782090633000,-318.0,0.00014587,2]
[425999788,1782090633000,-313.0,0.00014585,2]
[425999815,1782090633000,-151.0,0.00014587,2]
[425999811,1782090633000,-150.0,0.00014587,2]
[425999838,1782090633000,-1211.50634483,0.000149,2]
[425999839,1782090633000,-2008.999503,0.000149,2]
[425999836,1782090633000,-428.76776636,0.000149,2]
[425999837,1782090633000,-10977.6442395,0.000149,2]
[425999833,1782090633000,-23203.76126154,0.000149,2]
[425999834,1782090633000,-1254.41808677,0.000149,2]
[425999828,1782090633000,-2600.0,0.000148,5]
[425999830,1782090633000,-1178.56611166,0.000149,2]
[425999832,1782090633000,-22143.34421416,0.000149,2]
[425999831,1782090633000,-3300.0,0.000149,5]
[425999829,1782090633000,-179.38868994,0.000149,2]
[425999827,1782090633000,-3492.092,0.000148,2]
[425999835,1782090633000,-409.2275621,0.000149,2]
[425999825,1782090633000,-163.21,0.00014725,2]
[425999826,1782090633000,-2309.242,0.000148,2]
[425999814,1782090633000,-329.0,0.00014587,2]
[425999813,1782090633000,-312.0,0.00014587,2]
[425999816,1782090633000,-150.0,0.00014587,2]
[425999817,1782090633000,-151.0,0.00014587,2]
[425999818,1782090633000,-151.0,0.00014587,2]
[425999812,1782090633000,-311.0,0.00014587,2]
[425999820,1782090633000,-150.0,0.00014587,2]
[425999819,1782090633000,-151.0,0.00014587,2]
[425999822,1782090633000,-1300.0,0.000146,5]
[425999824,1782090633000,-2000.0,0.000147,5]
[425999823,1782090633000,-316.0,0.00014687,2]
[425999821,1782090633000,-500.0,0.00014587,2]
[425999865,1782090638000,-500.0,0.00014999,2]
[425999875,1782090638000,-500.0,0.00014999,2]
[425999873,1782090638000,-1000.0,0.00014999,2]
[425999866,1782090638000,-500.0,0.00014999,2]
[425999871,1782090638000,-500.0,0.00014999,2]
[425999864,1782090638000,-500.0,0.00014999,2]
[425999869,1782090638000,-500.0,0.00014999,2]
[425999867,1782090638000,-500.0,0.00014999,2]
[425999878,1782090638000,-500.0,0.00014999,2]
[425999874,1782090638000,-500.0,0.00014999,2]
[425999872,1782090638000,-500.0,0.00014999,2]
[425999870,1782090638000,-433.29599545,0.00014999,2]
[425999876,1782090638000,-500.0,0.00014999,2]
[425999879,1782090638000,-500.0,0.00014999,2]
[425999877,1782090638000,-500.0,0.00014999,2]
[425999862,1782090638000,-500.0,0.00014999,2]
[425999868,1782090638000,-500.0,0.00014999,2]
[425999859,1782090638000,-500.0,0.00014999,2]
[425999844,1782090638000,-507.28509728,0.00013854,2]
[425999860,1782090638000,-500.0,0.00014999,2]
[425999843,1782090638000,-500.0,0.00013854,2]
[425999846,1782090638000,-500.0,0.00013854,2]
[425999845,1782090638000,-521.40459257,0.00013854,2]
[425999847,1782090638000,-500.0,0.00013854,2]
[425999880,1782090638000,-500.0,0.00014999,2]
[425999852,1782090638000,-500.0,0.00013854,2]
[425999848,1782090638000,-500.0,0.00013854,2]
[425999849,1782090638000,-500.0,0.00013854,2]
[425999851,1782090638000,-500.0,0.00013854,2]
[425999850,1782090638000,-500.0,0.00013854,2]
[425999853,1782090638000,-8195.79441826,0.000149,2]
[425999854,1782090638000,-246.06443161,0.000149,2]
[425999855,1782090638000,-286.20068585,0.000149,2]
[425999856,1782090638000,-762.26624053,0.000149,2]
[425999857,1782090638000,-1041.90881415,0.000149,2]
[425999858,1782090638000,-167.14585756,0.0001499,2]
[425999863,1782090638000,-500.0,0.00014999,2]
[425999861,1782090638000,-500.0,0.00014999,2]
[425999882,1782090638000,-500.0,0.00014999,2]
[425999894,1782090638000,-500.0,0.00014999,2]
[425999881,1782090638000,-500.0,0.00014999,2]
[425999907,1782090638000,-500.0,0.00014999,2]
[425999902,1782090638000,-500.0,0.00014999,2]
[425999909,1782090638000,-500.0,0.00014999,2]
[425999910,1782090638000,-500.0,0.00014999,2]
[425999911,1782090638000,-500.0,0.00014999,2]
[425999914,1782090638000,-500.0,0.00014999,2]
[425999916,1782090638000,-500.0,0.00014999,2]
[425999917,1782090638000,-500.0,0.00014999,2]
[425999915,1782090638000,-500.0,0.00014999,2]
[425999918,1782090638000,-500.0,0.00014999,2]
[425999919,1782090638000,-500.0,0.00014999,2]
[425999920,1782090638000,-300.0,0.00014999,2]
[425999923,1782090638000,-672.63697964,0.00014999,2]
[425999922,1782090638000,-300.0,0.00014999,2]
[425999924,1782090638000,-300.0,0.00014999,2]
[425999921,1782090638000,-666.0,0.00014999,2]
[425999925,1782090638000,-4410193.35108793,0.00015,2]
[425999904,1782090638000,-500.0,0.00014999,2]
[425999905,1782090638000,-500.0,0.00014999,2]
[425999906,1782090638000,-500.0,0.00014999,2]
[425999912,1782090638000,-500.0,0.00014999,2]
[425999885,1782090638000,-500.0,0.00014999,2]
[425999884,1782090638000,-500.0,0.00014999,2]
[425999886,1782090638000,-500.0,0.00014999,2]
[425999888,1782090638000,-500.0,0.00014999,2]
[425999887,1782090638000,-500.0,0.00014999,2]
[425999889,1782090638000,-500.0,0.00014999,2]
[425999891,1782090638000,-500.0,0.00014999,2]
[425999899,1782090638000,-500.0,0.00014999,2]
[425999883,1782090638000,-500.0,0.00014999,2]
[425999890,1782090638000,-500.0,0.00014999,2]
[425999893,1782090638000,-500.0,0.00014999,2]
[425999897,1782090638000,-500.0,0.00014999,2]
[425999896,1782090638000,-500.0,0.00014999,2]
[425999895,1782090638000,-500.0,0.00014999,2]
[425999901,1782090638000,-500.0,0.00014999,2]
[425999903,1782090638000,-500.0,0.00014999,2]
[425999913,1782090638000,-500.0,0.00014999,2]
[425999892,1782090638000,-500.0,0.00014999,2]
[425999926,1782090639000,-500.0,0.00014999,2]
[425999928,1782090639000,-500.0,0.00014999,2]
[425999927,1782090639000,-500.0,0.00014999,2]
[425999929,1782090639000,-500.0,0.00014999,2]
[425999930,1782090639000,-258.92320528,0.00014999,2]
[425999935,1782090643000,-500.0,0.00014999,2]
[425999934,1782090643000,-241.07679472,0.00014999,2]
[425999938,1782090643000,-500.0,0.00014999,2]
[425999937,1782090643000,-500.0,0.00014999,2]
[425999943,1782090643000,-500.0,0.00014999,2]
[425999936,1782090643000,-500.0,0.00014999,2]
[425999940,1782090643000,-500.0,0.00014999,2]
[425999942,1782090643000,-500.0,0.00014999,2]
[425999945,1782090643000,-500.0,0.00014999,2]
[425999946,1782090643000,-26178.97556709,0.00015,2]
[425999941,1782090643000,-500.0,0.00014999,2]
[425999939,1782090643000,-500.0,0.00014999,2]
[425999944,1782090643000,-500.0,0.00014999,2]
[425999957,1782091606000,-191.96137821,0.00012867,2]
[425999958,1782091810000,668.59824143,0.0003013,120]
[426000024,1782091834000,-5798.24,0.0001413,2]
[426000000,1782091834000,-11432.71087447,0.00013,2]
[425999999,1782091834000,-150.0,0.00012999,2]
[426000004,1782091834000,-157.13,0.00013635,2]
[426000017,1782091834000,-186.03,0.0001402,2]
[426000015,1782091834000,-250.0,0.00014,2]
[426000003,1782091834000,-318.86,0.00013581,2]
[426000009,1782091834000,-160.0,0.00013793,2]
[426000033,1782091834000,-300.0,0.000148,5]
[426000020,1782091834000,-893.65,0.00014087,2]
[426000023,1782091834000,-255.0,0.00014104,2]
[426000022,1782091834000,-163.77,0.00014087,2]
[426000011,1782091834000,-276.34,0.00013811,2]
[426000013,1782091834000,-163.35,0.00013961,2]
[426000030,1782091834000,-150.0,0.00014783,2]
[426000001,1782091834000,-4010.81015197,0.00013,2]
[426000007,1782091834000,-200.0,0.00013699,2]
[425999995,1782091834000,-500.0,0.00012997,2]
[425999990,1782091834000,-190.52432191,0.00012767,2]
[425999996,1782091834000,-308.49983835,0.00012997,2]
[425999980,1782091834000,-164.06491302,0.00012702,2]
[425999983,1782091834000,-500.0,0.00012702,2]
[425999982,1782091834000,-500.0,0.00012702,2]
[425999981,1782091834000,-499.23916823,0.00012702,2]
[425999989,1782091834000,-1954.976396,0.00012703,2]
[425999984,1782091834000,-500.0,0.00012702,2]
[425999987,1782091834000,-500.0,0.00012702,2]
[425999988,1782091834000,-322.36726031,0.00012702,2]
[425999985,1782091834000,-500.0,0.00012702,2]
[425999986,1782091834000,-500.0,0.00012702,2]
[426000028,1782091834000,-1545.74,0.00014673,2]
[425999991,1782091834000,-232.99775,0.00012767,2]
[425999993,1782091834000,-202.68472038,0.00012997,2]
[425999992,1782091834000,-150.0,0.000129,2]
[425999994,1782091834000,-500.0,0.00012997,2]
[426000002,1782091834000,-6984.32886054,0.00013,2]
[425999998,1782091834000,-163.95568851,0.00012997,2]
[425999997,1782091834000,-347.81201707,0.00012997,2]
[426000035,1782091834000,-763.8120002,0.00014875,2]
[426000027,1782091834000,-200.72,0.00014534,2]
[426000055,1782091834000,-500.0,0.00014999,2]
[426000051,1782091834000,-500.0,0.00014999,2]
[426000052,1782091834000,-500.0,0.00014999,2]
[426000053,1782091834000,-500.0,0.00014999,2]
[426000025,1782091834000,-42775.689,0.00014385,2]
[426000056,1782091834000,-500.0,0.00014999,2]
[426000057,1782091834000,-500.0,0.00014999,2]
[426000059,1782091834000,-454.75,0.00014999,2]
[426000049,1782091834000,-315.0,0.00014999,2]
[426000058,1782091834000,-500.0,0.00014999,2]
[426000061,1782091834000,-500.0,0.00014999,2]
[426000063,1782091834000,-500.0,0.00014999,2]
[426000062,1782091834000,-500.0,0.00014999,2]
[426000064,1782091834000,-430.82461602,0.00014999,2]
[426000066,1782091834000,-500.0,0.00014999,2]
[426000065,1782091834000,-500.0,0.00014999,2]
[426000067,1782091834000,-500.0,0.00014999,2]
[426000060,1782091834000,-500.0,0.00014999,2]
[426000050,1782091834000,-321.0,0.00014999,2]
[426000054,1782091834000,-500.0,0.00014999,2]
[426000046,1782091834000,-600.0,0.000149,5]
[426000031,1782091834000,-444.19677542,0.000148,2]
[426000036,1782091834000,-4786.6779489,0.00014883,2]
[426000026,1782091834000,-1167.523,0.00014482,2]
[426000034,1782091834000,-1586.5152688,0.00014875,2]
[426000047,1782091834000,-794.64196,0.000149,2]
[426000037,1782091834000,-9347.8515904,0.00014883,2]
[426000029,1782091834000,-166.66,0.00014702,2]
[426000038,1782091834000,-6721.8060759,0.00014883,2]
[426000032,1782091834000,-1193.45559393,0.000148,2]
[426000041,1782091834000,-32620.94228024,0.00014883,2]
[426000039,1782091834000,-10419.52337471,0.00014883,2]
[426000045,1782091834000,-176.53272849,0.000149,2]
[426000044,1782091834000,-6274.043,0.000149,2]
[426000068,1782091834000,-500.0,0.00014999,2]
[426000048,1782091834000,-797.15722421,0.00014968,2]
[426000040,1782091834000,-11352.29775375,0.00014883,2]
[426000042,1782091834000,-8769.101967,0.000149,2]
[426000043,1782091834000,-1745.08500978,0.000149,2]
[426000070,1782091835000,-348.23019084,0.00014999,2]
[426000076,1782091835000,-61404.18659097,0.00015,2]
[426000069,1782091835000,-500.0,0.00014999,2]
[426000074,1782091835000,-500.0,0.00014999,2]
[426000075,1782091835000,-500.0,0.00014999,2]
[426000073,1782091835000,-500.0,0.00014999,2]
[426000071,1782091835000,-500.0,0.00014999,2]
[426000072,1782091835000,-500.0,0.00014999,2]
[426000077,1782091835000,-408.34137021,0.00015,2]
[426000087,1782091838000,-957.211541,0.00015,2]
[426000083,1782091838000,-3325.3918973,0.0001434,2]
[426000086,1782091838000,-1411.85707281,0.00015,2]
[426000085,1782091838000,-145014.22384708,0.00015,2]
[426000089,1782091838000,-11536.25855867,0.00015,2]
[426000088,1782091838000,-3176.30655884,0.00015,2]
[426000096,1782091838000,-1399.77558286,0.00015,2]
[426000099,1782091838000,-5456.14579161,0.00015,2]
[426000084,1782091838000,-178.80579195,0.0001499,2]
[426000127,1782091843000,-15314.81341504,0.00015,2]
[426000126,1782091843000,-13700.01758568,0.00015,2]
[426000125,1782091843000,-1029.24742018,0.00015,2]
[426000134,1782091846000,-296.54775342,0.00015,2]
[426000133,1782091846000,-71070.60454942,0.00015,2]
[426000145,1782092540000,195.0,0.00030136,120]
[426000147,1782092751000,101246.15,0.00030136,120]
[426000148,1782092893000,6620.78663987,0.000301,120]
[426000184,1782093032000,-29008.51,0.00014267,2]
[426000172,1782093032000,-181.35,0.00014169,2]
[426000178,1782093032000,-500.0,0.00014266,2]
[426000180,1782093032000,-500.0,0.00014266,2]
[426000179,1782093032000,-164.24225165,0.00014266,2]
[426000182,1782093032000,-288.42930868,0.00014266,2]
[426000181,1782093032000,-172.19926484,0.00014266,2]
[426000185,1782093032000,-186.03,0.00014353,2]
[426000191,1782093032000,-302.59,0.00014576,2]
[426000188,1782093032000,-216.32317309,0.0001439,2]
[426000186,1782093032000,-250.8812827,0.00014383,2]
[426000187,1782093032000,-183.62569688,0.00014384,2]
[426000189,1782093032000,-4126.52,0.00014424,2]
[426000174,1782093032000,-325.50448091,0.00014264,2]
[426000201,1782093032000,-1774.9966957,0.00014818,2]
[426000199,1782093032000,-1166.047,0.00014817,2]
[426000200,1782093032000,-10091.297545,0.00014818,2]
[426000183,1782093032000,-300.11584399,0.00014266,2]
[426000169,1782093032000,-166.66,0.00013958,2]
[426000168,1782093032000,-163.2,0.00013918,2]
[426000170,1782093032000,-250.0,0.00014,2]
[426000156,1782093032000,-123.44134143,0.000124,2]
[426000155,1782093032000,-182.63,0.00011128,2]
[426000157,1782093032000,-45.59885501,0.000124,2]
[426000159,1782093032000,-166.66,0.00013405,2]
[426000166,1782093032000,-157.98853747,0.000139,2]
[426000160,1782093032000,-1239.63,0.00013524,2]
[426000158,1782093032000,-166.66,0.00013128,2]
[426000162,1782093032000,-166.66,0.00013681,2]
[426000171,1782093032000,-200.0,0.00014014,2]
[426000161,1782093032000,-1852.42,0.00013524,2]
[426000165,1782093032000,-446.09975289,0.000139,2]
[426000163,1782093032000,-342.03,0.00013897,2]
[426000167,1782093032000,-445.59466253,0.000139,2]
[426000176,1782093032000,-500.0,0.00014264,2]
[426000190,1782093032000,-166.66,0.0001451,2]
[426000177,1782093032000,-165.72245423,0.00014264,2]
[426000173,1782093032000,-166.66,0.00014234,2]
[426000175,1782093032000,-500.0,0.00014264,2]
[426000164,1782093032000,-298.2069435,0.000139,2]
[426000194,1782093032000,-177.57014481,0.00014687,2]
[426000193,1782093032000,-163.45840096,0.00014687,2]
[426000192,1782093032000,-163.35,0.0001462,2]
[426000195,1782093032000,-150.0,0.00014717,2]
[426000218,1782093032000,-500.0,0.00014999,2]
[426000215,1782093032000,-171.38128409,0.000149,2]
[426000223,1782093032000,-502.31006982,0.00014999,2]
[426000221,1782093032000,-507.10545596,0.00014999,2]
[426000220,1782093032000,-240.08638546,0.00014999,2]
[426000222,1782093032000,-510.5756982,0.00014999,2]
[426000228,1782093032000,-1123.52,0.00014999,2]
[426000219,1782093032000,-482.24571438,0.00014999,2]
[426000231,1782093032000,-508.76185196,0.00014999,2]
[426000229,1782093032000,-1123.52,0.00014999,2]
[426000232,1782093032000,-396.46734566,0.00014999,2]
[426000234,1782093032000,-515.31883323,0.00014999,2]
[426000237,1782093032000,-214.87832166,0.00014999,2]
[426000235,1782093032000,-500.0,0.00014999,2]
[426000238,1782093032000,-500.0,0.00014999,2]
[426000233,1782093032000,-500.0,0.00014999,2]
[426000236,1782093032000,-500.0,0.00014999,2]
[426000230,1782093032000,-523.10716464,0.00014999,2]
[426000216,1782093032000,-163.45840096,0.00014951,2]
[426000217,1782093032000,-168.27,0.0001496,2]
[426000214,1782093032000,-1223.82016871,0.000149,2]
[426000197,1782093032000,-74987.71705058,0.00014718,2]
[426000196,1782093032000,-32066.92690161,0.00014718,2]
[426000198,1782093032000,-79573.59064781,0.00014718,2]
[426000202,1782093032000,-3286.9449321,0.00014818,2]
[426000204,1782093032000,-2551.1897486,0.00014818,2]
[426000227,1782093032000,-1123.52,0.00014999,2]
[426000207,1782093032000,-7384.4018,0.000149,2]
[426000206,1782093032000,-500.0,0.00014877,2]
[426000208,1782093032000,-2000.0,0.000149,2]
[426000205,1782093032000,-1834.4966848,0.00014818,2]
[426000203,1782093032000,-1306.3668796,0.00014818,2]
[426000210,1782093032000,-1691.90535952,0.000149,2]
[426000211,1782093032000,-3536.38314196,0.000149,2]
[426000213,1782093032000,-500.0,0.000149,5]
[426000212,1782093032000,-2500.0,0.000149,2]
[426000224,1782093032000,-514.3789797,0.00014999,2]
[426000226,1782093032000,-1123.52,0.00014999,2]
[426000225,1782093032000,-1123.52,0.00014999,2]
[426000209,1782093032000,-1751.0997,0.000149,2]
[426000239,1782093033000,-500.0,0.00014999,2]
[426000240,1782093033000,-372.44116161,0.00014999,2]
[426000250,1782093038000,-127.55883839,0.00014999,2]
[426000252,1782093038000,-511.93143546,0.00014999,2]
[426000254,1782093038000,-397.89846612,0.00014999,2]
[426000253,1782093038000,-102.10153388,0.00014999,2]
[426000258,1782093038000,-196338.77169917,0.00015,2]
[426000251,1782093038000,-162.54539227,0.00014999,2]
[426000255,1782093038000,-500.0,0.00014999,2]
[426000262,1782093038000,-662.4,0.00015,2]
[426000261,1782093038000,-503.07285087,0.00015,2]
[426000257,1782093038000,-507.44463053,0.00014999,2]
[426000259,1782093038000,-875.81123953,0.00015,2]
[426000256,1782093038000,-286.96975971,0.00014999,2]
[426000260,1782093038000,-1167.5,0.00015,2]
[426000274,1782093043000,-16897.91337843,0.00015,2]
[426000271,1782093043000,-500.0,0.00014999,2]
[426000272,1782093043000,-500.0,0.00014999,2]
[426000270,1782093043000,-500.0,0.00014817,2]
[426000273,1782093043000,-500.0,0.00014999,2]
[426000277,1782093046000,265.424843,0.00030136,120]
[426000278,1782093075000,1510.37021419,0.00030137,120]
[426000281,1782093076000,1510.37021419,0.00030137,120]
[426000280,1782093076000,1510.37021419,0.00030137,120]
[426000279,1782093076000,1510.37021419,0.00030137,120]
[426000294,1782093841000,5210.0,0.00030137,120]
[426000295,1782093870000,7950.0,0.00030137,120]
[426000297,1782093885000,-1100.0,0.000189,6]
[426000296,1782093885000,-250.13594224,0.000185,10]
[426000298,1782093939000,-299.99,0.00018533,4]
[426000314,1782094011000,-366.3,0.00013444,2]
[426000313,1782094011000,-150.0,0.00013364,2]
[426000312,1782094011000,-619.81,0.0001332,2]
[426000310,1782094011000,-216.32317309,0.00013035,2]
[426000311,1782094011000,-160.0,0.00013035,2]
[426000309,1782094011000,-347.82,0.0001302,2]
[426000307,1782094011000,-175.0,0.00012738,2]
[426000308,1782094011000,-253.02171262,0.00012958,2]
[426000306,1782094011000,-150.0,0.00012616,2]
[426000305,1782094011000,-150.0,0.00012495,2]
[426000304,1782094011000,-150.0,0.00012374,2]
[426000301,1782094011000,-214.985,0.0001178,2]
[426000303,1782094011000,-150.0,0.00012252,2]
[426000302,1782094011000,-347.82,0.00012218,2]
[426000299,1782094011000,-347.82,0.0001178,2]
[426000315,1782094011000,-686.04,0.00013562,2]
[426000317,1782094011000,-159.55,0.00013765,2]
[426000300,1782094011000,-500.0,0.0001178,2]
[426000316,1782094011000,-179.36,0.0001364,2]
[426000318,1782094011000,-500.0,0.00013781,2]
[426000334,1782094011000,-2754.088958,0.00014873,2]
[426000330,1782094011000,-178.0936,0.000148,2]
[426000331,1782094011000,-889.45,0.00014817,2]
[426000329,1782094011000,-38994.0713,0.00014718,2]
[426000332,1782094011000,-11661.9697717,0.00014873,2]
[426000326,1782094011000,-500.0,0.00014493,2]
[426000327,1782094011000,-150.0,0.00014717,2]
[426000333,1782094011000,-165.5615137,0.00014873,2]
[426000328,1782094011000,-182.01962649,0.00014718,2]
[426000324,1782094011000,-20059.38,0.00014,2]
[426000322,1782094011000,-500.0,0.00013999,2]
[426000323,1782094011000,-233.80576788,0.00013999,2]
[426000320,1782094011000,-725.74,0.00013932,2]
[426000321,1782094011000,-177.90843998,0.00013999,2]
[426000319,1782094011000,-176.49,0.00013849,2]
[426000325,1782094011000,-3948.4733,0.00014167,2]
[426000345,1782094012000,-500.0,0.00014999,2]
[426000346,1782094012000,-500.0,0.00014999,2]
[426000344,1782094012000,-500.0,0.00014999,2]
[426000342,1782094012000,-178.80579196,0.0001499,2]
[426000340,1782094012000,-2747.25566269,0.000149,2]
[426000341,1782094012000,-2500.0,0.000149,2]
[426000338,1782094012000,-932.837,0.000149,2]
[426000337,1782094012000,-233.64428654,0.000149,2]
[426000336,1782094012000,-743.858563,0.000149,2]
[426000335,1782094012000,-582.3755,0.000149,2]
[426000347,1782094012000,-889.45,0.00014999,2]
[426000339,1782094012000,-500.0,0.000149,2]
[426000349,1782094012000,-889.45,0.00014999,2]
[426000343,1782094012000,-576.42900055,0.00014999,2]
[426000350,1782094012000,-500.0,0.00014999,2]
[426000348,1782094012000,-889.45,0.00014999,2]
[426000361,1782094012000,-672.48135843,0.00014999,2]
[426000360,1782094012000,-309.02834537,0.00014999,2]
[426000358,1782094012000,-500.0,0.00014999,2]
[426000359,1782094012000,-308.56610047,0.00014999,2]
[426000357,1782094012000,-500.0,0.00014999,2]
[426000362,1782094012000,-43734.34028529,0.00015,2]
[426000355,1782094012000,-500.0,0.00014999,2]
[426000354,1782094012000,-500.0,0.00014999,2]
[426000352,1782094012000,-500.0,0.00014999,2]
[426000353,1782094012000,-500.0,0.00014999,2]
[426000356,1782094012000,-500.0,0.00014999,2]
[426000351,1782094012000,-500.0,0.00014999,2]
[426000393,1782094232000,-214.90520378,0.00014899,2]
[426000388,1782094232000,-153.0,0.000147,2]
[426000386,1782094232000,-4074.91971802,0.00014618,2]
[426000389,1782094232000,-180.12084956,0.000148,2]
[426000391,1782094232000,-897.0639012,0.00014806,2]
[426000392,1782094232000,-264.89897663,0.00014899,2]
[426000396,1782094232000,-150.0,0.00014899,2]
[426000399,1782094232000,-1600.0,0.000149,5]
[426000394,1782094232000,-513.66403752,0.00014899,2]
[426000380,1782094232000,-150.0,0.00013999,2]
[426000390,1782094232000,-1000.0,0.000148,5]
[426000384,1782094232000,-6410.26038155,0.00014618,2]
[426000375,1782094232000,-151.0,0.00013999,2]
[426000382,1782094232000,-151.0,0.00014303,2]
[426000379,1782094232000,-151.0,0.00013999,2]
[426000381,1782094232000,-151.0,0.00014303,2]
[426000377,1782094232000,-151.0,0.00013999,2]
[426000378,1782094232000,-150.0,0.00013999,2]
[426000372,1782094232000,-153.0,0.00013999,2]
[426000374,1782094232000,-150.0,0.00013999,2]
[426000376,1782094232000,-151.0,0.00013999,2]
[426000370,1782094232000,-153.0,0.00013999,2]
[426000373,1782094232000,-151.0,0.00013999,2]
[426000371,1782094232000,-150.0,0.00013999,2]
[426000383,1782094232000,-160.0,0.00014304,2]
[426000401,1782094232000,-9073.52582154,0.000149,2]
[426000387,1782094232000,-500.0,0.000147,5]
[426000398,1782094232000,-166.87009224,0.00014899,2]
[426000397,1782094232000,-500.0,0.00014899,2]
[426000450,1782094232000,-48051.49163136,0.00015,2]
[426000448,1782094232000,-607.7748,0.00015,2]
[426000449,1782094232000,-323.23,0.00015,2]
[426000435,1782094232000,-500.0,0.00014999,2]
[426000433,1782094232000,-500.0,0.00014999,2]
[426000431,1782094232000,-500.0,0.00014999,2]
[426000429,1782094232000,-500.0,0.00014999,2]
[426000425,1782094232000,-500.0,0.00014999,2]
[426000441,1782094232000,-27208.48667513,0.00015,2]
[426000437,1782094232000,-300.0,0.00014999,2]
[426000439,1782094232000,-1329.0,0.00015,5]
[426000426,1782094232000,-500.0,0.00014999,2]
[426000385,1782094232000,-90152.57930043,0.00014618,2]
[426000412,1782094232000,-500.0,0.00014999,2]
[426000395,1782094232000,-185.42928364,0.00014899,2]
[426000400,1782094232000,-180.12084956,0.000149,2]
[426000403,1782094232000,-2500.0,0.000149,2]
[426000406,1782094232000,-323.44542035,0.00014999,2]
[426000402,1782094232000,-155.7628577,0.000149,2]
[426000416,1782094232000,-456.72729378,0.00014999,2]
[426000418,1782094232000,-500.0,0.00014999,2]
[426000414,1782094232000,-500.0,0.00014999,2]
[426000410,1782094232000,-500.0,0.00014999,2]
[426000423,1782094232000,-500.0,0.00014999,2]
[426000408,1782094232000,-500.0,0.00014999,2]